[Event "Early-Titled-Tuesday-Blitz-March-19-2024"]
[Site "Chess.com"]
[Date "2024.03.19"]
[Round "1"]
[White "rhungaski"]
[Black "LeoWin2012"]
[Result "1-0"]
[WhiteElo "2612"]
[BlackElo "2202"]
[TimeControl "180+1"]
[EndTime "8:05:21 PDT"]
[Termination "rhungaski won by checkmate"]

1. e4 {[%clk 0:02:59.6]} 1... e5 {[%clk 0:02:58.4]} 2. Nf3 {[%clk 0:02:59.3]}
2... Nf6 {[%clk 0:02:58.5]} 3. Nc3 {[%clk 0:02:57.2]} 3... Nc6 {[%clk
0:02:57.8]} 4. d4 {[%clk 0:02:57.4]} 4... exd4 {[%clk 0:02:56.8]} 5. Nxd4 {[%clk
0:02:58.3]} 5... Bb4 {[%clk 0:02:56.6]} 6. Nxc6 {[%clk 0:02:58.4]} 6... bxc6
{[%clk 0:02:57.5]} 7. Bd3 {[%clk 0:02:58.7]} 7... d5 {[%clk 0:02:55.8]} 8. Bd2
{[%clk 0:02:58.5]} 8... O-O {[%clk 0:02:26.6]} 9. O-O {[%clk 0:02:55.4]} 9...
dxe4 {[%clk 0:02:08.2]} 10. Nxe4 {[%clk 0:02:52]} 10... Bxd2 {[%clk 0:02:07.6]}
11. Nxd2 {[%clk 0:02:45.4]} 11... g6 {[%clk 0:01:37.4]} 12. Qf3 {[%clk
0:02:32.7]} 12... Nd5 {[%clk 0:01:34.6]} 13. a3 {[%clk 0:02:05.3]} 13... Rb8
{[%clk 0:01:07.5]} 14. b3 {[%clk 0:02:04.4]} 14... Be6 {[%clk 0:01:02.7]} 15.
Rfe1 {[%clk 0:02:01.4]} 15... Qf6 {[%clk 0:00:56.6]} 16. Be4 {[%clk 0:01:51.5]}
16... Qxf3 {[%clk 0:00:54]} 17. Nxf3 {[%clk 0:01:52.4]} 17... f5 {[%clk
0:00:49.5]} 18. Bd3 {[%clk 0:01:50.6]} 18... Nf4 {[%clk 0:00:46.8]} 19. Rxe6
{[%clk 0:01:50.4]} 19... Nxe6 {[%clk 0:00:46.4]} 20. Bc4 {[%clk 0:01:50.7]}
20... Rbe8 {[%clk 0:00:32.3]} 21. Ng5 {[%clk 0:01:43.8]} 21... Rf6 {[%clk
0:00:28.5]} 22. Re1 {[%clk 0:01:41.9]} 22... Kg7 {[%clk 0:00:23.4]} 23. Nxe6+
{[%clk 0:01:40.6]} 23... Kh6 {[%clk 0:00:23.6]} 24. f4 {[%clk 0:01:38.6]} 24...
Re7 {[%clk 0:00:23.3]} 25. Re3 {[%clk 0:01:35.7]} 25... Kh5 {[%clk 0:00:18.3]}
26. Rh3+ {[%clk 0:01:30.8]} 26... Kg4 {[%clk 0:00:18.5]} 27. Be2# {[%clk
0:01:31.7]} 1-0

[Event "Early-Titled-Tuesday-Blitz-March-19-2024"]
[Site "Chess.com"]
[Date "2024.03.19"]
[Round "1"]
[White "Orest_Vovk"]
[Black "Shield12"]
[Result "0-1"]
[WhiteElo "2526"]
[BlackElo "2933"]
[TimeControl "180+1"]
[EndTime "8:05:26 PDT"]
[Termination "Shield12 won on time"]

1. g4 {[%clk 0:03:00.9]} 1... d5 {[%clk 0:02:59.8]} 2. h3 {[%clk 0:03:00.8]}
2... c6 {[%clk 0:03:00.5]} 3. Bg2 {[%clk 0:02:59.5]} 3... e6 {[%clk 0:03:00.8]}
4. d4 {[%clk 0:02:59.1]} 4... Nf6 {[%clk 0:02:58.2]} 5. Nf3 {[%clk 0:02:57.7]}
5... Be7 {[%clk 0:02:55]} 6. Nc3 {[%clk 0:02:57.4]} 6... b6 {[%clk 0:02:53.4]}
7. g5 {[%clk 0:02:51.8]} 7... Nfd7 {[%clk 0:02:52.9]} 8. h4 {[%clk 0:02:50.2]}
8... Bb7 {[%clk 0:02:52.3]} 9. e4 {[%clk 0:02:50]} 9... dxe4 {[%clk 0:02:51.8]}
10. Nxe4 {[%clk 0:02:48.7]} 10... c5 {[%clk 0:02:51]} 11. Ne5 {[%clk 0:02:38.5]}
11... Nxe5 {[%clk 0:02:44.1]} 12. dxe5 {[%clk 0:02:38.2]} 12... Qxd1+ {[%clk
0:02:42.1]} 13. Kxd1 {[%clk 0:02:39.1]} 13... Nc6 {[%clk 0:02:42.6]} 14. Bf4
{[%clk 0:02:16.8]} 14... O-O-O+ {[%clk 0:02:42.1]} 15. Kc1 {[%clk 0:02:16]}
15... Nd4 {[%clk 0:02:36.2]} 16. Re1 {[%clk 0:02:05]} 16... h6 {[%clk
0:02:36.2]} 17. c3 {[%clk 0:01:38.6]} 17... Nf5 {[%clk 0:02:34.6]} 18. gxh6
{[%clk 0:01:33.4]} 18... gxh6 {[%clk 0:02:34.2]} 19. h5 {[%clk 0:01:26.2]} 19...
Rhg8 {[%clk 0:02:33.8]} 20. Bh1 {[%clk 0:01:22]} 20... Rg4 {[%clk 0:02:31.8]}
21. Bd2 {[%clk 0:01:08.5]} 21... Rh4 {[%clk 0:02:29.1]} 22. Bf3 {[%clk
0:01:02.8]} 22... Rd3 {[%clk 0:02:26.1]} 23. Bg2 {[%clk 0:00:36.4]} 23... Rh2
{[%clk 0:02:23.9]} 24. Bf1 {[%clk 0:00:30.5]} 24... Rf3 {[%clk 0:02:23.6]} 25.
Nd6+ {[%clk 0:00:07.6]} 25... Bxd6 {[%clk 0:02:22.4]} 26. exd6 {[%clk
0:00:08.5]} 26... Rfxf2 {[%clk 0:02:22.7]} 27. Rd1 {[%clk 0:00:05.3]} 27... Bf3
{[%clk 0:02:17.6]} 28. d7+ {[%clk 0:00:05.1]} 28... Kxd7 {[%clk 0:02:14.5]} 29.
Be3+ {[%clk 0:00:04.9]} 29... Bxd1 {[%clk 0:02:13.3]} 30. Bb5+ {[%clk
0:00:03.4]} 30... Ke7 {[%clk 0:02:10.8]} 31. Bxf2 {[%clk 0:00:04.3]} 31... Rxf2
{[%clk 0:02:10.4]} 32. Kxd1 {[%clk 0:00:04.5]} 32... Rxb2 {[%clk 0:02:09.5]} 33.
a4 {[%clk 0:00:04.3]} 33... Rh2 {[%clk 0:02:06.5]} 34. Ra3 {[%clk 0:00:03.5]}
34... Ne3+ {[%clk 0:02:06.6]} 35. Ke1 {[%clk 0:00:03.2]} 35... Nc2+ {[%clk
0:02:06.4]} 0-1

[Event "Early-Titled-Tuesday-Blitz-March-19-2024"]
[Site "Chess.com"]
[Date "2024.03.19"]
[Round "1"]
[White "Incognizance"]
[Black "Sharan_Rao"]
[Result "0-1"]
[WhiteElo "1873"]
[BlackElo "2583"]
[TimeControl "180+1"]
[EndTime "8:05:32 PDT"]
[Termination "Sharan_Rao won by resignation"]

1. d4 {[%clk 0:03:00.3]} 1... d5 {[%clk 0:02:58.3]} 2. c4 {[%clk 0:03:00.8]}
2... e6 {[%clk 0:02:58.2]} 3. Nf3 {[%clk 0:03:01.3]} 3... Nf6 {[%clk 0:02:58.4]}
4. e3 {[%clk 0:03:01.8]} 4... c6 {[%clk 0:02:57.8]} 5. b3 {[%clk 0:03:02.1]}
5... Be7 {[%clk 0:02:56.7]} 6. Bb2 {[%clk 0:03:02.4]} 6... O-O {[%clk
0:02:56.5]} 7. Nbd2 {[%clk 0:03:03]} 7... b6 {[%clk 0:02:55.7]} 8. Bd3 {[%clk
0:03:03.5]} 8... Bb7 {[%clk 0:02:55]} 9. O-O {[%clk 0:03:02.7]} 9... Nbd7 {[%clk
0:02:52.8]} 10. Ne5 {[%clk 0:03:02.8]} 10... c5 {[%clk 0:02:53]} 11. f4 {[%clk
0:03:02.7]} 11... Rc8 {[%clk 0:02:52.6]} 12. Qe2 {[%clk 0:03:01.7]} 12... dxc4
{[%clk 0:02:48.6]} 13. bxc4 {[%clk 0:03:01.5]} 13... Nb8 {[%clk 0:02:40.8]} 14.
g4 {[%clk 0:02:59.3]} 14... Nc6 {[%clk 0:02:28.1]} 15. g5 {[%clk 0:02:59.4]}
15... Ne8 {[%clk 0:02:25]} 16. Qh5 {[%clk 0:02:41.1]} 16... g6 {[%clk
0:02:22.7]} 17. Nxg6 {[%clk 0:02:39]} 17... fxg6 {[%clk 0:02:16.5]} 18. Bxg6
{[%clk 0:02:38.7]} 18... hxg6 {[%clk 0:02:08.3]} 19. Qxg6+ {[%clk 0:02:38.6]}
19... Ng7 {[%clk 0:02:09]} 20. d5 {[%clk 0:02:38.5]} 20... Nd4 {[%clk
0:01:22.9]} 21. exd4 {[%clk 0:02:18.8]} 21... Qe8 {[%clk 0:01:23]} 22. Qh6
{[%clk 0:01:50.4]} 22... Qh5 {[%clk 0:01:22.4]} 23. Qxh5 {[%clk 0:00:45.4]}
23... Nxh5 {[%clk 0:01:23.3]} 24. dxe6 {[%clk 0:00:37.1]} 24... cxd4 {[%clk
0:01:21.1]} 25. f5 {[%clk 0:00:29.5]} 25... Bxg5 {[%clk 0:01:21.3]} 26. Nf3
{[%clk 0:00:29.2]} 26... Be3+ {[%clk 0:01:21.4]} 27. Kg2 {[%clk 0:00:27.8]}
27... Nf4+ {[%clk 0:01:21.4]} 28. Kh1 {[%clk 0:00:26.3]} 28... Rxf5 {[%clk
0:01:22]} 0-1

[Event "Early-Titled-Tuesday-Blitz-March-19-2024"]
[Site "Chess.com"]
[Date "2024.03.19"]
[Round "1"]
[White "HajiyevKanan"]
[Black "maciek_92"]
[Result "1-0"]
[WhiteElo "2524"]
[BlackElo "2887"]
[TimeControl "180+1"]
[EndTime "8:05:34 PDT"]
[Termination "HajiyevKanan won by resignation"]

1. d4 {[%clk 0:02:58.3]} 1... c6 {[%clk 0:01:48.5]} 2. Nf3 {[%clk 0:02:57.3]}
2... d5 {[%clk 0:01:48.9]} 3. c4 {[%clk 0:02:57.5]} 3... Nf6 {[%clk 0:01:49.6]}
4. cxd5 {[%clk 0:02:58.4]} 4... Nxd5 {[%clk 0:01:49.4]} 5. Nc3 {[%clk
0:02:59.3]} 5... Nxc3 {[%clk 0:01:49.2]} 6. bxc3 {[%clk 0:03:00.2]} 6... g6
{[%clk 0:01:49.8]} 7. e4 {[%clk 0:03:00.1]} 7... Bg7 {[%clk 0:01:50.5]} 8. Bc4
{[%clk 0:03:00.7]} 8... O-O {[%clk 0:01:50.8]} 9. O-O {[%clk 0:03:00.6]} 9...
Nd7 {[%clk 0:01:51.6]} 10. Bg5 {[%clk 0:02:59.9]} 10... Qe8 {[%clk 0:01:48.6]}
11. e5 {[%clk 0:03:00]} 11... Nb6 {[%clk 0:01:48.5]} 12. Bb3 {[%clk 0:02:59.8]}
12... Bf5 {[%clk 0:01:31.1]} 13. a4 {[%clk 0:02:58.4]} 13... Rd8 {[%clk
0:00:52.6]} 14. Qd2 {[%clk 0:02:55.5]} 14... Be4 {[%clk 0:00:49.4]} 15. Qf4
{[%clk 0:02:52.6]} 15... Bd5 {[%clk 0:00:45.7]} 16. Bc2 {[%clk 0:02:53]} 16...
Bc4 {[%clk 0:00:45.3]} 17. Rfe1 {[%clk 0:02:48]} 17... Nd5 {[%clk 0:00:45.6]}
18. Qh4 {[%clk 0:02:47.3]} 18... Nxc3 {[%clk 0:00:45.2]} 19. Bxe7 {[%clk
0:02:44.4]} 19... Bd5 {[%clk 0:00:36.1]} 20. Bxf8 {[%clk 0:02:36.4]} 20... Qxf8
{[%clk 0:00:34.7]} 21. Re3 {[%clk 0:02:28.5]} 21... Bxf3 {[%clk 0:00:33.3]} 22.
Rxf3 {[%clk 0:02:26.1]} 22... Ne2+ {[%clk 0:00:33.2]} 23. Kh1 {[%clk 0:02:24.6]}
23... Nxd4 {[%clk 0:00:34.1]} 24. Rh3 {[%clk 0:02:24.5]} 24... h5 {[%clk
0:00:33.1]} 25. Rd1 {[%clk 0:02:22]} 25... Bxe5 {[%clk 0:00:32.3]} 26. f4 {[%clk
0:02:20.9]} 26... Bg7 {[%clk 0:00:26.2]} 27. f5 {[%clk 0:02:19.5]} 27... Rd6
{[%clk 0:00:23.4]} 28. fxg6 {[%clk 0:02:02.6]} 28... fxg6 {[%clk 0:00:24.3]} 29.
Bb1 {[%clk 0:01:46.4]} 29... Qf7 {[%clk 0:00:22.7]} 30. Qg3 {[%clk 0:01:38.8]}
30... Ne2 {[%clk 0:00:20.8]} 31. Qxd6 {[%clk 0:01:35.1]} 1-0

[Event "Early-Titled-Tuesday-Blitz-March-19-2024"]
[Site "Chess.com"]
[Date "2024.03.19"]
[Round "1"]
[White "Kunalm64"]
[Black "Pumpkin_in_moonlight"]
[Result "1-0"]
[WhiteElo "2631"]
[BlackElo "2260"]
[TimeControl "180+1"]
[EndTime "8:05:36 PDT"]
[Termination "Kunalm64 won on time"]

1. e4 {[%clk 0:02:59.7]} 1... c5 {[%clk 0:02:59.1]} 2. Nf3 {[%clk 0:02:59.4]}
2... d6 {[%clk 0:02:58.2]} 3. Bb5+ {[%clk 0:02:59]} 3... Nc6 {[%clk 0:02:47]} 4.
O-O {[%clk 0:02:56.7]} 4... Nf6 {[%clk 0:01:36.1]} 5. Re1 {[%clk 0:02:54.2]}
5... Bg4 {[%clk 0:01:33.9]} 6. c3 {[%clk 0:02:49.6]} 6... a6 {[%clk 0:01:10.9]}
7. Bxc6+ {[%clk 0:02:47.7]} 7... bxc6 {[%clk 0:01:11]} 8. d4 {[%clk 0:02:47.8]}
8... cxd4 {[%clk 0:00:57.5]} 9. cxd4 {[%clk 0:02:47.5]} 9... g6 {[%clk
0:00:44.8]} 10. Nc3 {[%clk 0:02:30.9]} 10... Bg7 {[%clk 0:00:44]} 11. h3 {[%clk
0:02:30.5]} 11... Bxf3 {[%clk 0:00:39.2]} 12. Qxf3 {[%clk 0:02:30.3]} 12... O-O
{[%clk 0:00:36.5]} 13. b3 {[%clk 0:02:29.1]} 13... Nd7 {[%clk 0:00:31.2]} 14.
Be3 {[%clk 0:01:53.8]} 14... c5 {[%clk 0:00:29.2]} 15. Rad1 {[%clk 0:01:52.7]}
15... cxd4 {[%clk 0:00:26.6]} 16. Bxd4 {[%clk 0:01:52.7]} 16... Bxd4 {[%clk
0:00:22.7]} 17. Rxd4 {[%clk 0:01:53.6]} 17... Ne5 {[%clk 0:00:21.9]} 18. Qe3
{[%clk 0:01:51.8]} 18... Qb6 {[%clk 0:00:18.5]} 19. Nd5 {[%clk 0:01:47.5]} 19...
Qb7 {[%clk 0:00:18.5]} 20. Qh6 {[%clk 0:01:38.1]} 20... Rfc8 {[%clk 0:00:12.2]}
21. f4 {[%clk 0:01:32.3]} 21... Nc6 {[%clk 0:00:09.7]} 22. Rd2 {[%clk 0:01:32]}
22... Nd8 {[%clk 0:00:07.2]} 23. f5 {[%clk 0:01:30.7]} 23... Rc5 {[%clk
0:00:03.5]} 24. f6 {[%clk 0:01:30]} 1-0

[Event "Early-Titled-Tuesday-Blitz-March-19-2024"]
[Site "Chess.com"]
[Date "2024.03.19"]
[Round "1"]
[White "sergoy"]
[Black "davidarenas1224"]
[Result "1-0"]
[WhiteElo "2949"]
[BlackElo "2531"]
[TimeControl "180+1"]
[EndTime "8:05:38 PDT"]
[Termination "sergoy won by resignation"]

1. d4 {[%clk 0:03:00.9]} 1... Nf6 {[%clk 0:02:58.4]} 2. c4 {[%clk 0:03:00.9]}
2... e6 {[%clk 0:02:58.5]} 3. Nf3 {[%clk 0:02:59.8]} 3... d5 {[%clk 0:02:57.3]}
4. Nc3 {[%clk 0:03:00.2]} 4... Be7 {[%clk 0:02:54.2]} 5. Bf4 {[%clk 0:02:58.8]}
5... O-O {[%clk 0:02:52.4]} 6. e3 {[%clk 0:02:59]} 6... b6 {[%clk 0:02:52.2]} 7.
cxd5 {[%clk 0:02:58.7]} 7... exd5 {[%clk 0:02:51.3]} 8. Bd3 {[%clk 0:02:58.7]}
8... c5 {[%clk 0:02:41.6]} 9. Ne5 {[%clk 0:02:58.5]} 9... Be6 {[%clk 0:02:26.1]}
10. O-O {[%clk 0:02:57.1]} 10... Qc8 {[%clk 0:02:02.5]} 11. Rc1 {[%clk
0:02:55.7]} 11... Qb7 {[%clk 0:01:59.8]} 12. Qf3 {[%clk 0:02:21.3]} 12... Nbd7
{[%clk 0:01:50.4]} 13. h3 {[%clk 0:02:08.5]} 13... Rac8 {[%clk 0:01:48.9]} 14.
Rfd1 {[%clk 0:02:08.1]} 14... Rfd8 {[%clk 0:01:38.6]} 15. Bg5 {[%clk 0:01:52.6]}
15... h6 {[%clk 0:01:33.4]} 16. Bf4 {[%clk 0:01:51.4]} 16... a6 {[%clk
0:01:12.4]} 17. a4 {[%clk 0:01:41.2]} 17... c4 {[%clk 0:01:11.5]} 18. Nxc4
{[%clk 0:01:40.1]} 18... Ne4 {[%clk 0:00:44.3]} 19. Nxe4 {[%clk 0:01:36.6]}
19... dxe4 {[%clk 0:00:38.3]} 20. Bxe4 {[%clk 0:01:36.6]} 20... Qa7 {[%clk
0:00:38.7]} 21. d5 {[%clk 0:01:36.6]} 21... f5 {[%clk 0:00:25.8]} 22. Bb1 {[%clk
0:01:30.8]} 22... Bf7 {[%clk 0:00:23.7]} 23. Bxf5 {[%clk 0:01:30.9]} 23... b5
{[%clk 0:00:22]} 24. axb5 {[%clk 0:01:27.8]} 24... axb5 {[%clk 0:00:22.9]} 25.
Be6 {[%clk 0:01:18.9]} 25... bxc4 {[%clk 0:00:19.5]} 26. Bxf7+ {[%clk 0:01:17]}
26... Kh8 {[%clk 0:00:20]} 27. Be6 {[%clk 0:01:15.5]} 1-0

[Event "Early-Titled-Tuesday-Blitz-March-19-2024"]
[Site "Chess.com"]
[Date "2024.03.19"]
[Round "1"]
[White "FARIZA2018"]
[Black "cardiganbyts"]
[Result "1-0"]
[WhiteElo "2582"]
[BlackElo "1860"]
[TimeControl "180+1"]
[EndTime "8:05:38 PDT"]
[Termination "FARIZA2018 won by checkmate"]

1. e4 {[%clk 0:03:00.9]} 1... c6 {[%clk 0:02:58.4]} 2. d4 {[%clk 0:03:01]} 2...
d5 {[%clk 0:02:57.3]} 3. Nc3 {[%clk 0:02:58.9]} 3... dxe4 {[%clk 0:02:56.4]} 4.
Nxe4 {[%clk 0:02:58.4]} 4... Nf6 {[%clk 0:02:56.4]} 5. Nxf6+ {[%clk 0:02:58.7]}
5... exf6 {[%clk 0:02:56.1]} 6. c3 {[%clk 0:02:59.2]} 6... Bd6 {[%clk
0:02:54.4]} 7. Bd3 {[%clk 0:02:59.6]} 7... O-O {[%clk 0:02:52.9]} 8. Qc2 {[%clk
0:03:00]} 8... Re8+ {[%clk 0:02:52.4]} 9. Ne2 {[%clk 0:03:00.6]} 9... h5 {[%clk
0:02:51.8]} 10. O-O {[%clk 0:03:00.9]} 10... Nd7 {[%clk 0:02:44.3]} 11. Bf4
{[%clk 0:02:59.8]} 11... Nf8 {[%clk 0:02:42.1]} 12. Bxd6 {[%clk 0:02:52.8]}
12... Qxd6 {[%clk 0:02:41.3]} 13. Rad1 {[%clk 0:02:52.7]} 13... h4 {[%clk
0:02:32.6]} 14. h3 {[%clk 0:02:51.3]} 14... Be6 {[%clk 0:02:29.9]} 15. c4 {[%clk
0:02:51.3]} 15... Rad8 {[%clk 0:02:26.4]} 16. Nc3 {[%clk 0:02:50.7]} 16... Qd7
{[%clk 0:02:18.7]} 17. d5 {[%clk 0:02:46.6]} 17... Bxh3 {[%clk 0:02:10.7]} 18.
gxh3 {[%clk 0:02:28.4]} 18... Qxh3 {[%clk 0:02:08.9]} 19. f3 {[%clk 0:02:08.3]}
19... Re5 {[%clk 0:02:04.5]} 20. Qh2 {[%clk 0:02:08.2]} 20... Rg5+ {[%clk
0:01:51.1]} 21. Kh1 {[%clk 0:02:08.4]} 21... Qc8 {[%clk 0:01:48.6]} 22. Ne4
{[%clk 0:02:01.7]} 22... Rh5 {[%clk 0:01:39.9]} 23. d6 {[%clk 0:01:36.7]} 23...
f5 {[%clk 0:01:35]} 24. Nf2 {[%clk 0:01:35.6]} 24... Qe6 {[%clk 0:01:28.3]} 25.
c5 {[%clk 0:01:32.6]} 25... Ng6 {[%clk 0:01:20.4]} 26. b3 {[%clk 0:01:22.5]}
26... Ne5 {[%clk 0:01:07.8]} 27. Rfe1 {[%clk 0:01:22]} 27... f6 {[%clk
0:01:05.7]} 28. Bc4 {[%clk 0:01:21.2]} 28... Qxc4 {[%clk 0:00:58.5]} 29. bxc4
{[%clk 0:01:21]} 29... Nxf3 {[%clk 0:00:58.2]} 30. Qg2 {[%clk 0:01:20]} 30...
Nxe1 {[%clk 0:00:55.9]} 31. Rxe1 {[%clk 0:01:20.2]} 31... g5 {[%clk 0:00:52.2]}
32. Re7 {[%clk 0:01:19.6]} 32... g4 {[%clk 0:00:49.9]} 33. Nxg4 {[%clk
0:01:16.8]} 33... fxg4 {[%clk 0:00:46.6]} 34. Qxg4+ {[%clk 0:01:17]} 34... Rg5
{[%clk 0:00:45.7]} 35. Qe6+ {[%clk 0:01:17]} 35... Kf8 {[%clk 0:00:39.9]} 36.
Qf7# {[%clk 0:01:16.6]} 1-0

[Event "Early-Titled-Tuesday-Blitz-March-19-2024"]
[Site "Chess.com"]
[Date "2024.03.19"]
[Round "1"]
[White "ZenBull"]
[Black "Noki102"]
[Result "1-0"]
[WhiteElo "2315"]
[BlackElo "2610"]
[TimeControl "180+1"]
[EndTime "8:05:40 PDT"]
[Termination "ZenBull won on time"]

1. c4 {[%clk 0:02:56.5]} 1... e5 {[%clk 0:02:59.5]} 2. e3 {[%clk 0:02:52.9]}
2... Nc6 {[%clk 0:02:56.4]} 3. Nc3 {[%clk 0:02:52.7]} 3... Nf6 {[%clk
0:02:53.6]} 4. d3 {[%clk 0:02:52.8]} 4... g6 {[%clk 0:02:46]} 5. Nf3 {[%clk
0:02:52.5]} 5... Bg7 {[%clk 0:02:45.9]} 6. Be2 {[%clk 0:02:53.1]} 6... O-O
{[%clk 0:02:45]} 7. O-O {[%clk 0:02:54]} 7... Re8 {[%clk 0:02:40.8]} 8. a3
{[%clk 0:02:53.1]} 8... d5 {[%clk 0:02:39]} 9. cxd5 {[%clk 0:02:52.9]} 9... Nxd5
{[%clk 0:02:38.8]} 10. Qc2 {[%clk 0:02:53.2]} 10... a6 {[%clk 0:02:28.6]} 11.
Bd2 {[%clk 0:02:52.9]} 11... Bf5 {[%clk 0:02:17.6]} 12. Nxd5 {[%clk 0:02:51.2]}
12... Qxd5 {[%clk 0:02:09.5]} 13. e4 {[%clk 0:02:48.5]} 13... Qe6 {[%clk
0:01:58.9]} 14. exf5 {[%clk 0:02:48.6]} 14... gxf5 {[%clk 0:01:59.7]} 15. Rfe1
{[%clk 0:02:48.1]} 15... Rad8 {[%clk 0:01:54.6]} 16. Bc3 {[%clk 0:02:47.4]}
16... Qg6 {[%clk 0:01:43.2]} 17. Bf1 {[%clk 0:02:46.1]} 17... Rd5 {[%clk
0:01:35.1]} 18. Rad1 {[%clk 0:02:44.9]} 18... Red8 {[%clk 0:01:31.1]} 19. Nd2
{[%clk 0:02:36.2]} 19... b5 {[%clk 0:01:20]} 20. Nf3 {[%clk 0:02:21.8]} 20... a5
{[%clk 0:01:16]} 21. b4 {[%clk 0:02:19.2]} 21... a4 {[%clk 0:01:09.4]} 22. Bb2
{[%clk 0:02:18.2]} 22... e4 {[%clk 0:00:56.4]} 23. dxe4 {[%clk 0:02:16]} 23...
Rxd1 {[%clk 0:00:55.2]} 24. Rxd1 {[%clk 0:02:15.2]} 24... Rxd1 {[%clk
0:00:55.2]} 25. Bxg7 {[%clk 0:02:00.5]} 25... Rxf1+ {[%clk 0:00:31]} 26. Kxf1
{[%clk 0:02:01.4]} 26... Kxg7 {[%clk 0:00:30.8]} 27. exf5 {[%clk 0:02:00.3]}
27... Qf6 {[%clk 0:00:28]} 28. g4 {[%clk 0:01:54]} 28... Ne7 {[%clk 0:00:20.9]}
29. Kg2 {[%clk 0:01:47.8]} 29... Nd5 {[%clk 0:00:17.1]} 30. Qd2 {[%clk
0:01:43.3]} 30... c6 {[%clk 0:00:11.1]} 31. Qd4 {[%clk 0:01:38.1]} 1-0

[Event "Early-Titled-Tuesday-Blitz-March-19-2024"]
[Site "Chess.com"]
[Date "2024.03.19"]
[Round "1"]
[White "GMG"]
[Black "Zheenbekov86"]
[Result "1/2-1/2"]
[WhiteElo "2782"]
[BlackElo "2437"]
[TimeControl "180+1"]
[EndTime "8:05:41 PDT"]
[Termination "Game drawn by repetition"]

1. d4 {[%clk 0:02:58.4]} 1... Nf6 {[%clk 0:02:57.2]} 2. c4 {[%clk 0:02:58.3]}
2... g6 {[%clk 0:02:56.3]} 3. Nc3 {[%clk 0:02:58.6]} 3... Bg7 {[%clk 0:02:55.8]}
4. e4 {[%clk 0:02:58.9]} 4... d6 {[%clk 0:02:55.9]} 5. f3 {[%clk 0:02:59.3]}
5... O-O {[%clk 0:02:55.8]} 6. Nge2 {[%clk 0:02:59.9]} 6... c5 {[%clk
0:02:55.4]} 7. d5 {[%clk 0:02:59.7]} 7... Na6 {[%clk 0:02:53.1]} 8. Ng3 {[%clk
0:02:37.9]} 8... Nc7 {[%clk 0:02:46.6]} 9. Bd3 {[%clk 0:02:34.9]} 9... a6 {[%clk
0:02:44.1]} 10. a4 {[%clk 0:02:34.6]} 10... b6 {[%clk 0:02:44.2]} 11. O-O {[%clk
0:02:31.9]} 11... Rb8 {[%clk 0:02:40.6]} 12. Bg5 {[%clk 0:02:27.6]} 12... Bd7
{[%clk 0:02:39.8]} 13. Qd2 {[%clk 0:02:12.3]} 13... b5 {[%clk 0:02:33.7]} 14.
axb5 {[%clk 0:01:57.2]} 14... axb5 {[%clk 0:02:33.1]} 15. f4 {[%clk 0:01:53.7]}
15... bxc4 {[%clk 0:02:27.8]} 16. Bxc4 {[%clk 0:01:54.3]} 16... Rb4 {[%clk
0:02:27.2]} 17. b3 {[%clk 0:01:54.6]} 17... Bb5 {[%clk 0:02:16.4]} 18. Nxb5
{[%clk 0:01:49.6]} 18... Nxb5 {[%clk 0:02:16.1]} 19. Rae1 {[%clk 0:01:45]} 19...
Nd7 {[%clk 0:02:08]} 20. e5 {[%clk 0:01:29.2]} 20... f6 {[%clk 0:01:47.4]} 21.
exf6 {[%clk 0:01:25.2]} 21... exf6 {[%clk 0:01:42.4]} 22. Bh4 {[%clk 0:01:25.8]}
22... Nd4 {[%clk 0:01:42.4]} 23. Ne4 {[%clk 0:00:58.2]} 23... Nb6 {[%clk
0:01:41.9]} 24. Qd3 {[%clk 0:00:57]} 24... Nxc4 {[%clk 0:01:39.4]} 25. bxc4
{[%clk 0:00:57.9]} 25... Rb3 {[%clk 0:01:38.6]} 26. Qd1 {[%clk 0:00:57.8]} 26...
Qb6 {[%clk 0:01:33.3]} 27. Bf2 {[%clk 0:00:52.1]} 27... Rb4 {[%clk 0:01:09.9]}
28. Qd3 {[%clk 0:00:47.8]} 28... Rb3 {[%clk 0:01:06.5]} 29. Qd1 {[%clk
0:00:47.8]} 29... Rb4 {[%clk 0:01:06.5]} 30. Qd3 {[%clk 0:00:41.9]} 30... Rb3
{[%clk 0:01:06.4]} 31. Qd1 {[%clk 0:00:41.8]} 1/2-1/2

[Event "Early-Titled-Tuesday-Blitz-March-19-2024"]
[Site "Chess.com"]
[Date "2024.03.19"]
[Round "1"]
[White "bennyficial"]
[Black "SmirnovAlexandrA"]
[Result "0-1"]
[WhiteElo "2118"]
[BlackElo "2598"]
[TimeControl "180+1"]
[EndTime "8:05:42 PDT"]
[Termination "SmirnovAlexandrA won by checkmate"]

1. Nf3 {[%clk 0:02:57.5]} 1... Nf6 {[%clk 0:02:57]} 2. c4 {[%clk 0:02:57.4]}
2... g6 {[%clk 0:02:57.9]} 3. b3 {[%clk 0:02:57.1]} 3... Bg7 {[%clk 0:02:58]} 4.
Bb2 {[%clk 0:02:57.8]} 4... O-O {[%clk 0:02:57.2]} 5. g3 {[%clk 0:02:58.4]} 5...
c5 {[%clk 0:02:55]} 6. Bg2 {[%clk 0:02:57.3]} 6... Nc6 {[%clk 0:02:55.6]} 7. O-O
{[%clk 0:02:57.6]} 7... d6 {[%clk 0:02:51.5]} 8. d4 {[%clk 0:02:57.6]} 8... cxd4
{[%clk 0:02:51.4]} 9. Nxd4 {[%clk 0:02:57.9]} 9... Bd7 {[%clk 0:02:52.2]} 10.
Nc3 {[%clk 0:02:50.9]} 10... Nxd4 {[%clk 0:02:51.7]} 11. Qxd4 {[%clk 0:02:50.7]}
11... Bc6 {[%clk 0:02:52.6]} 12. Nd5 {[%clk 0:02:43.4]} 12... Bxd5 {[%clk
0:02:48.3]} 13. cxd5 {[%clk 0:02:41.2]} 13... Nh5 {[%clk 0:02:48.8]} 14. Qd2
{[%clk 0:02:40.5]} 14... Bxb2 {[%clk 0:02:49.7]} 15. Qxb2 {[%clk 0:02:41.2]}
15... Nf6 {[%clk 0:02:45.5]} 16. Rac1 {[%clk 0:02:40.1]} 16... Qa5 {[%clk
0:02:44.7]} 17. Rfd1 {[%clk 0:02:17]} 17... Rac8 {[%clk 0:02:44]} 18. b4 {[%clk
0:02:15.1]} 18... Qb5 {[%clk 0:02:36]} 19. e4 {[%clk 0:01:46.8]} 19... Nd7
{[%clk 0:02:28.3]} 20. Bh3 {[%clk 0:01:42.7]} 20... Rxc1 {[%clk 0:02:27.6]} 21.
Rxc1 {[%clk 0:01:41.8]} 21... Ne5 {[%clk 0:02:28.2]} 22. Bf1 {[%clk 0:01:34.9]}
22... Qb6 {[%clk 0:02:27.7]} 23. Kg2 {[%clk 0:01:31.7]} 23... f5 {[%clk
0:02:22.3]} 24. exf5 {[%clk 0:01:11.4]} 24... gxf5 {[%clk 0:02:23.2]} 25. a3
{[%clk 0:01:02.6]} 25... f4 {[%clk 0:02:14.8]} 26. Rd1 {[%clk 0:00:46.5]} 26...
Qc7 {[%clk 0:01:56.9]} 27. Qd4 {[%clk 0:00:37.1]} 27... Qd7 {[%clk 0:01:49.3]}
28. Bd3 {[%clk 0:00:28.2]} 28... Qg4 {[%clk 0:01:46.5]} 29. h3 {[%clk
0:00:20.5]} 29... Qf3+ {[%clk 0:01:42.8]} 30. Kh2 {[%clk 0:00:18.8]} 30... Rf6
{[%clk 0:01:28.1]} 31. Rg1 {[%clk 0:00:16.1]} 31... Ng4+ {[%clk 0:01:24.9]} 32.
hxg4 {[%clk 0:00:12.9]} 32... Rh6# {[%clk 0:01:25.8]} 0-1